BODY,BODY NAME,DATE,TRANSACTION NUMBER, AMOUNT ,SUPPLIER NAME,SUPPLIER ID,EXPENSE AREA,EXPENSE TYPE,EXPENSE CODE
http://statistics.data.gov.uk/id/local-authority/12UE,Huntingdonshire District Council,07/02/2013,119883,374.52,Borney (Uk) Ltd,CR144249,One Leisure Ramsey,Advertising/Promoting Services,255
http://statistics.data.gov.uk/id/local-authority/12UE,Huntingdonshire District Council,28/02/2013,121650,684,Fitness Industry Assoc. Ltd,CR003876,One Leisure Ramsey,Advertising/Promoting Services,255
http://statistics.data.gov.uk/id/local-authority/12UE,Huntingdonshire District Council,07/02/2013,119883,374.52,Borney (Uk) Ltd,CR144249,One Leisure Sawtry,Advertising/Promoting Services,255
http://statistics.data.gov.uk/id/local-authority/12UE,Huntingdonshire District Council,07/02/2013,119839,782.06,Newlyn Plc,CR409114,Council Tax,Bailiffs,703
http://statistics.data.gov.uk/id/local-authority/12UE,Huntingdonshire District Council,28/02/2013,120862,743.12,Newlyn Plc,CR409114,Council Tax,Bailiffs,703
http://statistics.data.gov.uk/id/local-authority/12UE,Huntingdonshire District Council,07/02/2013,120431,513.38,Booker Cash And Carry,CR027611,One Leisure Huntingdon,Bar Provisions,558
http://statistics.data.gov.uk/id/local-authority/12UE,Huntingdonshire District Council,07/02/2013,119933,2311,Booker Cash And Carry,CR027611,One Leisure St Ives,Bar Provisions,558
http://statistics.data.gov.uk/id/local-authority/12UE,Huntingdonshire District Council,07/02/2013,120491,1002.12,Booker Cash And Carry,CR027611,One Leisure St Ives,Bar Provisions,558
http://statistics.data.gov.uk/id/local-authority/12UE,Huntingdonshire District Council,07/02/2013,120485,695.03,Booker Cash And Carry,CR027611,One Leisure St Ives,Bar Provisions,558
http://statistics.data.gov.uk/id/local-authority/12UE,Huntingdonshire District Council,28/02/2013,120908,215.46,Booker Cash And Carry,CR027611,One Leisure St Ives,Bar Provisions,558
http://statistics.data.gov.uk/id/local-authority/12UE,Huntingdonshire District Council,28/02/2013,121679,492.13,Booker Cash And Carry,CR027611,One Leisure St Ives,Bar Provisions,558
http://statistics.data.gov.uk/id/local-authority/12UE,Huntingdonshire District Council,07/02/2013,119560,299.62,Booker Cash And Carry,CR027611,One Leisure St Ives,Bar Provisions,558
http://statistics.data.gov.uk/id/local-authority/12UE,Huntingdonshire District Council,07/02/2013,120495,2001.86,Heineken Uk Ltd,CR032678,One Leisure St Ives,Bar Provisions,558
http://statistics.data.gov.uk/id/local-authority/12UE,Huntingdonshire District Council,07/02/2013,119559,914.03,Heineken Uk Ltd,CR032678,One Leisure St Ives,Bar Provisions,558
http://statistics.data.gov.uk/id/local-authority/12UE,Huntingdonshire District Council,07/02/2013,120368,3186,Elephant & Castle Freehouse & Motel,CR401969,Accommodation For Homeless,Bed & Breakfast Payment,818
http://statistics.data.gov.uk/id/local-authority/12UE,Huntingdonshire District Council,14/02/2013,120944,3024,Elephant & Castle Freehouse & Motel,CR401969,Accommodation For Homeless,Bed & Breakfast Payment,818
http://statistics.data.gov.uk/id/local-authority/12UE,Huntingdonshire District Council,21/02/2013,121289,2754,Elephant & Castle Freehouse & Motel,CR401969,Accommodation For Homeless,Bed & Breakfast Payment,818
http://statistics.data.gov.uk/id/local-authority/12UE,Huntingdonshire District Council,07/02/2013,118642,630,The Station Hotel,CR453752,Accommodation For Homeless,Bed & Breakfast Payment,818
http://statistics.data.gov.uk/id/local-authority/12UE,Huntingdonshire District Council,07/02/2013,118643,630,The Station Hotel,CR453752,Accommodation For Homeless,Bed & Breakfast Payment,818
http://statistics.data.gov.uk/id/local-authority/12UE,Huntingdonshire District Council,07/02/2013,119988,630,The Station Hotel,CR453752,Accommodation For Homeless,Bed & Breakfast Payment,818
http://statistics.data.gov.uk/id/local-authority/12UE,Huntingdonshire District Council,07/02/2013,119989,630,The Station Hotel,CR453752,Accommodation For Homeless,Bed & Breakfast Payment,818
http://statistics.data.gov.uk/id/local-authority/12UE,Huntingdonshire District Council,07/02/2013,120198,750,Lexisnexis,CR401981,Central & Democratic Serv Mu,Books & Publications,250
http://statistics.data.gov.uk/id/local-authority/12UE,Huntingdonshire District Council,21/02/2013,121022,5000,Hunts Forum Of Voluntary Organisations,CR030582,Community Projects,Books & Publications,250
http://statistics.data.gov.uk/id/local-authority/12UE,Huntingdonshire District Council,21/02/2013,121195,2610.72,Peter Lockyer Advertising Ltd,CR033030,Operations Mgt Units,Books & Publications,250
http://statistics.data.gov.uk/id/local-authority/12UE,Huntingdonshire District Council,07/02/2013,120251,1356.6,Ecocleen Services Limited,CR406985,E F H And Depots,Building Cleaning Internal,440
http://statistics.data.gov.uk/id/local-authority/12UE,Huntingdonshire District Council,07/02/2013,120413,1387.5,Ecocleen Services Limited,CR406985,One Leisure Huntingdon,Building Cleaning Internal,440
http://statistics.data.gov.uk/id/local-authority/12UE,Huntingdonshire District Council,07/02/2013,120341,1750.19,Ecocleen Services Limited,CR406985,One Leisure St Ives,Building Cleaning Internal,440
http://statistics.data.gov.uk/id/local-authority/12UE,Huntingdonshire District Council,07/02/2013,120532,546.13,Ecocleen Services Limited,CR406985,One Leisure St Neots,Building Cleaning Internal,440
http://statistics.data.gov.uk/id/local-authority/12UE,Huntingdonshire District Council,07/02/2013,120245,2146.93,Ecocleen Services Limited,CR406985,Pathfinder House Site,Building Cleaning Internal,440
http://statistics.data.gov.uk/id/local-authority/12UE,Huntingdonshire District Council,07/02/2013,120250,1160.86,Ecocleen Services Limited,CR406985,Public Conveniences,Building Cleaning Internal,440
http://statistics.data.gov.uk/id/local-authority/12UE,Huntingdonshire District Council,07/02/2013,120246,658.1,Ecocleen Services Limited,CR406985,Public Conveniences,Building Cleaning Internal,440
http://statistics.data.gov.uk/id/local-authority/12UE,Huntingdonshire District Council,28/02/2013,121649,3600,Building Services Design - Bsd,CR409263,Leisure Centres Capital,Building Construction,300
http://statistics.data.gov.uk/id/local-authority/12UE,Huntingdonshire District Council,07/02/2013,120190,22307.89,R G Carter Peterborough,CR401511,Leisure Centres Capital,Building Construction,300
http://statistics.data.gov.uk/id/local-authority/12UE,Huntingdonshire District Council,07/02/2013,120181,5.3,Sarfo Solicitors,CR415973,Revenue Services Mus,Business Improvement Dist Levy,429
http://statistics.data.gov.uk/id/local-authority/12UE,Huntingdonshire District Council,07/02/2013,120265,3908.89,Cale Briparc Ltd,CR401137,Car Park Management,Car Park Machines,522
http://statistics.data.gov.uk/id/local-authority/12UE,Huntingdonshire District Council,07/02/2013,120264,777.6,Cale Briparc Ltd,CR401137,Car Park Management,Car Park Machines,522
http://statistics.data.gov.uk/id/local-authority/12UE,Huntingdonshire District Council,28/02/2013,121064,4717.06,G4s Cashservices Uk Ltd,CR407133,Car Park Management,Cash Collection,702
http://statistics.data.gov.uk/id/local-authority/12UE,Huntingdonshire District Council,28/02/2013,121067,372.06,G4s Cashservices Uk Ltd,CR407133,Customer Service Centres,Cash Collection,702
http://statistics.data.gov.uk/id/local-authority/12UE,Huntingdonshire District Council,28/02/2013,121067,297.62,G4s Cashservices Uk Ltd,CR407133,One Leisure Huntingdon,Cash Collection,702
http://statistics.data.gov.uk/id/local-authority/12UE,Huntingdonshire District Council,28/02/2013,121067,74.41,G4s Cashservices Uk Ltd,CR407133,One Leisure Ramsey,Cash Collection,702
http://statistics.data.gov.uk/id/local-authority/12UE,Huntingdonshire District Council,28/02/2013,121067,74.41,G4s Cashservices Uk Ltd,CR407133,One Leisure Sawtry,Cash Collection,702
http://statistics.data.gov.uk/id/local-authority/12UE,Huntingdonshire District Council,28/02/2013,121067,223.22,G4s Cashservices Uk Ltd,CR407133,One Leisure St Ives,Cash Collection,702
http://statistics.data.gov.uk/id/local-authority/12UE,Huntingdonshire District Council,28/02/2013,121067,446.44,G4s Cashservices Uk Ltd,CR407133,One Leisure St Neots,Cash Collection,702
http://statistics.data.gov.uk/id/local-authority/12UE,Huntingdonshire District Council,07/02/2013,119933,426.84,Booker Cash And Carry,CR027611,One Leisure St Ives,Catering Materials,559
http://statistics.data.gov.uk/id/local-authority/12UE,Huntingdonshire District Council,07/02/2013,120491,59.4,Booker Cash And Carry,CR027611,One Leisure St Ives,Catering Materials,559
http://statistics.data.gov.uk/id/local-authority/12UE,Huntingdonshire District Council,07/02/2013,120485,41.44,Booker Cash And Carry,CR027611,One Leisure St Ives,Catering Materials,559
http://statistics.data.gov.uk/id/local-authority/12UE,Huntingdonshire District Council,28/02/2013,120908,74.67,Booker Cash And Carry,CR027611,One Leisure St Ives,Catering Materials,559
http://statistics.data.gov.uk/id/local-authority/12UE,Huntingdonshire District Council,28/02/2013,121679,2.5,Booker Cash And Carry,CR027611,One Leisure St Ives,Catering Materials,559
http://statistics.data.gov.uk/id/local-authority/12UE,Huntingdonshire District Council,07/02/2013,119560,162.68,Booker Cash And Carry,CR027611,One Leisure St Ives,Catering Materials,559
http://statistics.data.gov.uk/id/local-authority/12UE,Huntingdonshire District Council,07/02/2013,120258,569.9,Brenntag Uk Ltd,CR015017,One Leisure Ramsey,Chemicals,551
http://statistics.data.gov.uk/id/local-authority/12UE,Huntingdonshire District Council,07/02/2013,120491,18.92,Booker Cash And Carry,CR027611,One Leisure St Ives,Cleaning Materials,443
http://statistics.data.gov.uk/id/local-authority/12UE,Huntingdonshire District Council,28/02/2013,120908,11.38,Booker Cash And Carry,CR027611,One Leisure St Ives,Cleaning Materials,443
http://statistics.data.gov.uk/id/local-authority/12UE,Huntingdonshire District Council,28/02/2013,120227,835.96,Maskearaid Ind Supplies,CR033423,Pathfinder House Site,Cleaning Materials,443
http://statistics.data.gov.uk/id/local-authority/12UE,Huntingdonshire District Council,07/02/2013,119783,687.26,Maskearaid Ind Supplies,CR033423,Pathfinder House Site,Cleaning Materials,443
http://statistics.data.gov.uk/id/local-authority/12UE,Huntingdonshire District Council,07/02/2013,120491,81.77,Booker Cash And Carry,CR027611,One Leisure St Ives,Confectionery,572
http://statistics.data.gov.uk/id/local-authority/12UE,Huntingdonshire District Council,28/02/2013,120908,180.8,Booker Cash And Carry,CR027611,One Leisure St Ives,Confectionery,572
http://statistics.data.gov.uk/id/local-authority/12UE,Huntingdonshire District Council,07/02/2013,119560,22.55,Booker Cash And Carry,CR027611,One Leisure St Ives,Confectionery,572
http://statistics.data.gov.uk/id/local-authority/12UE,Huntingdonshire District Council,14/02/2013,545158,540,Cambridgeshire County Council,CR006678,Transportation Capital,Consultants,711
http://statistics.data.gov.uk/id/local-authority/12UE,Huntingdonshire District Council,20/02/2013,120884,850.68,Opus International Consultants,CR479831,Building Control Applications,Consultants,711
http://statistics.data.gov.uk/id/local-authority/12UE,Huntingdonshire District Council,14/02/2013,120994,900,Reading Agricultural Consultants,CR404991,Dc Application Processing,Consultants,711
http://statistics.data.gov.uk/id/local-authority/12UE,Huntingdonshire District Council,21/02/2013,116389,1290,Eacs Ltd,CR404499,Development Team,Consultants,711
http://statistics.data.gov.uk/id/local-authority/12UE,Huntingdonshire District Council,28/02/2013,120985,645,Eacs Ltd,CR404499,Development Team,Consultants,711
http://statistics.data.gov.uk/id/local-authority/12UE,Huntingdonshire District Council,07/02/2013,120175,6179.62,Deloitte,CR416667,Estates Properties Capital,Consultants,711
http://statistics.data.gov.uk/id/local-authority/12UE,Huntingdonshire District Council,20/02/2013,120858,2069.22,C G Utilities,CR119758,Facilities Mgt,Consultants,711
http://statistics.data.gov.uk/id/local-authority/12UE,Huntingdonshire District Council,28/02/2013,120837,1200,Northgate Information Solutions Uk Ltd,CR028925,Helpdesk,Consultants,711
http://statistics.data.gov.uk/id/local-authority/12UE,Huntingdonshire District Council,07/02/2013,119522,2160,Rsa Environmental Health Limited,CR482415,Human Resources,Consultants,711
http://statistics.data.gov.uk/id/local-authority/12UE,Huntingdonshire District Council,20/02/2013,120968,9658.09,Drivers  Jonas Deloitte,CR400573,Local Development Framework,Consultants,711
http://statistics.data.gov.uk/id/local-authority/12UE,Huntingdonshire District Council,28/02/2013,121584,6588.78,Computershare Vouchers Ltd,CR412205,General Creditors,Deductions Paid To Third Party,26
http://statistics.data.gov.uk/id/local-authority/12UE,Huntingdonshire District Council,07/02/2013,120197,100.8,Garner Medical Ltd,CR003972,Pathfinder House Site,Delivery Charges,232
http://statistics.data.gov.uk/id/local-authority/12UE,Huntingdonshire District Council,14/02/2013,120880,591.49,Swalec,CR407130,Car Park Management,Electricity,420
http://statistics.data.gov.uk/id/local-authority/12UE,Huntingdonshire District Council,14/02/2013,120961,5612.21,E-On Energy,CR416430,E F H And Depots,Electricity,420
http://statistics.data.gov.uk/id/local-authority/12UE,Huntingdonshire District Council,14/02/2013,120881,2585.78,Swalec,CR407130,Housing Services Other,Electricity,420
http://statistics.data.gov.uk/id/local-authority/12UE,Huntingdonshire District Council,14/02/2013,120963,5442.32,E-On Energy,CR416430,One Leisure Huntingdon,Electricity,420
http://statistics.data.gov.uk/id/local-authority/12UE,Huntingdonshire District Council,14/02/2013,120879,1338.81,Swalec,CR407130,One Leisure Huntingdon,Electricity,420
http://statistics.data.gov.uk/id/local-authority/12UE,Huntingdonshire District Council,21/02/2013,121138,2621.61,Swalec,CR407130,One Leisure Ramsey,Electricity,420
http://statistics.data.gov.uk/id/local-authority/12UE,Huntingdonshire District Council,14/02/2013,120886,10715.82,E-On Energy,CR416430,One Leisure St Ives,Electricity,420
http://statistics.data.gov.uk/id/local-authority/12UE,Huntingdonshire District Council,14/02/2013,120885,2699.08,E-On Energy,CR416430,One Leisure St Ives,Electricity,420
http://statistics.data.gov.uk/id/local-authority/12UE,Huntingdonshire District Council,14/02/2013,120962,9250.51,E-On Energy,CR416430,One Leisure St Neots,Electricity,420
http://statistics.data.gov.uk/id/local-authority/12UE,Huntingdonshire District Council,21/02/2013,121137,714.03,Swalec,CR407130,Parks & Open Spaces,Electricity,420
http://statistics.data.gov.uk/id/local-authority/12UE,Huntingdonshire District Council,21/02/2013,121334,501.25,Swalec,CR407130,Parks & Open Spaces,Electricity,420
http://statistics.data.gov.uk/id/local-authority/12UE,Huntingdonshire District Council,14/02/2013,120964,10514.7,E-On Energy,CR416430,Pathfinder House Site,Electricity,420
http://statistics.data.gov.uk/id/local-authority/12UE,Huntingdonshire District Council,28/02/2013,120866,1411.2,Flora Tec Ltd,CR028191,Pathfinder House Site,Electricity,420
http://statistics.data.gov.uk/id/local-authority/12UE,Huntingdonshire District Council,19/02/2013,546663,2000,Chris Smith,CR480696,One Leisure St Ives,Entertainments Inc Cable Tv,744
http://statistics.data.gov.uk/id/local-authority/12UE,Huntingdonshire District Council,14/02/2013,120899,2000,Chris Smith,CR480696,One Leisure St Ives,Entertainments Inc Cable Tv,744
http://statistics.data.gov.uk/id/local-authority/12UE,Huntingdonshire District Council,14/02/2013,121105,-2000,Chris Smith,CR480696,One Leisure St Ives,Entertainments Inc Cable Tv,744
http://statistics.data.gov.uk/id/local-authority/12UE,Huntingdonshire District Council,21/02/2013,121350,543.6,Sky Business,CR033259,One Leisure St Ives,Entertainments Inc Cable Tv,744
http://statistics.data.gov.uk/id/local-authority/12UE,Huntingdonshire District Council,28/02/2013,121771,1100.05,Starlite Roadshow,CR024127,One Leisure St Ives,Entertainments Inc Cable Tv,744
http://statistics.data.gov.uk/id/local-authority/12UE,Huntingdonshire District Council,07/02/2013,120336,750,Starlite Roadshow,CR024127,One Leisure St Ives,Entertainments Inc Cable Tv,744
http://statistics.data.gov.uk/id/local-authority/12UE,Huntingdonshire District Council,07/02/2013,120336,60,Starlite Roadshow,CR024127,One Leisure St Ives,Equipment Hire,507
http://statistics.data.gov.uk/id/local-authority/12UE,Huntingdonshire District Council,07/02/2013,119018,2154.65,Konica Minolta Business Solutions East Ltd,CR478866,Document Centre,Equipment Maintenance,511
http://statistics.data.gov.uk/id/local-authority/12UE,Huntingdonshire District Council,07/02/2013,120518,1035.17,Oce Uk Limited,CR409013,Document Centre,Equipment Maintenance,511
http://statistics.data.gov.uk/id/local-authority/12UE,Huntingdonshire District Council,07/02/2013,119262,1134,Civica Uk Ltd,CR415826,Helpdesk,Equipment Maintenance,511
http://statistics.data.gov.uk/id/local-authority/12UE,Huntingdonshire District Council,28/02/2013,120840,21761.41,Freedom Communications Uk Ltd,CR478774,Helpdesk,Equipment Maintenance,511
http://statistics.data.gov.uk/id/local-authority/12UE,Huntingdonshire District Council,07/02/2013,120304,792,Campbell Associates,CR407137,Nuisances,Equipment Maintenance,511
http://statistics.data.gov.uk/id/local-authority/12UE,Huntingdonshire District Council,07/02/2013,119668,7263.53,Kelway (Uk) Ltd,CR004345,Software Capital,Equipment Maintenance,511
http://statistics.data.gov.uk/id/local-authority/12UE,Huntingdonshire District Council,07/02/2013,120034,3044.4,Quadrant Security Group,CR027775,C C T V Equipment Capital,Equipment Purchases,500
http://statistics.data.gov.uk/id/local-authority/12UE,Huntingdonshire District Council,07/02/2013,119527,1386,Harvard Engineering Plc,CR455227,Environment Equipment Capital,Equipment Purchases,500
http://statistics.data.gov.uk/id/local-authority/12UE,Huntingdonshire District Council,07/02/2013,119938,549.84,Interflon,CR482679,Fleet Management,Equipment Purchases,500
http://statistics.data.gov.uk/id/local-authority/12UE,Huntingdonshire District Council,28/02/2013,121271,1121,Trinity Engineering & Component Supplies Ltd,CR455479,Fleet Management,Equipment Purchases,500
http://statistics.data.gov.uk/id/local-authority/12UE,Huntingdonshire District Council,07/02/2013,120454,872.68,Arthur Ibbett Ltd,CR000430,Grounds Maintenance (Combined),Equipment Purchases,500
http://statistics.data.gov.uk/id/local-authority/12UE,Huntingdonshire District Council,07/02/2013,120517,2285.21,Konica Minolta Business Solutions East Ltd,CR478866,I T Capital,Equipment Purchases,500
http://statistics.data.gov.uk/id/local-authority/12UE,Huntingdonshire District Council,21/02/2013,121348,5790,Bowltech,CR455453,Leisure Centres Capital,Equipment Purchases,500
http://statistics.data.gov.uk/id/local-authority/12UE,Huntingdonshire District Council,21/02/2013,121349,4464,Bowltech,CR455453,Leisure Centres Capital,Equipment Purchases,500
http://statistics.data.gov.uk/id/local-authority/12UE,Huntingdonshire District Council,07/02/2013,119553,1500,Bowltech,CR455453,Leisure Centres Capital,Equipment Purchases,500
http://statistics.data.gov.uk/id/local-authority/12UE,Huntingdonshire District Council,28/02/2013,121728,4128,Technogym Uk Ltd,CR033037,One Leisure Sawtry,Equipment Purchases,500
http://statistics.data.gov.uk/id/local-authority/12UE,Huntingdonshire District Council,28/02/2013,121663,810,Gerrard Iternational,CR480778,One Leisure St Ives,Equipment Purchases,500
http://statistics.data.gov.uk/id/local-authority/12UE,Huntingdonshire District Council,28/02/2013,121661,1296.25,Gerrard Iternational,CR480778,One Leisure St Ives,Equipment Purchases,500
http://statistics.data.gov.uk/id/local-authority/12UE,Huntingdonshire District Council,07/02/2013,119956,555.98,Glasdon Uk Ltd,CR002827,One Leisure St Ives,Equipment Purchases,500
http://statistics.data.gov.uk/id/local-authority/12UE,Huntingdonshire District Council,07/02/2013,120482,1573.1,Hygromatic Gmbh,CR455529,One Leisure St Neots,Equipment Purchases,500
http://statistics.data.gov.uk/id/local-authority/12UE,Huntingdonshire District Council,28/02/2013,121727,4128,Technogym Uk Ltd,CR033037,One Leisure St Neots,Equipment Purchases,500
http://statistics.data.gov.uk/id/local-authority/12UE,Huntingdonshire District Council,07/02/2013,119529,668.93,Urbis Lighting Ltd,CR000016,Parks & Open Spaces,Equipment Purchases,500
http://statistics.data.gov.uk/id/local-authority/12UE,Huntingdonshire District Council,07/02/2013,120197,5760,Garner Medical Ltd,CR003972,Pathfinder House Site,Equipment Purchases,500
http://statistics.data.gov.uk/id/local-authority/12UE,Huntingdonshire District Council,28/02/2013,121140,808.8,Survey Express Services,CR479645,Private Sector Housing,Equipment Purchases,500
http://statistics.data.gov.uk/id/local-authority/12UE,Huntingdonshire District Council,07/02/2013,120357,38280,Cambridgeshire County Council,CR017440,Payroll,Financial Services,772
http://statistics.data.gov.uk/id/local-authority/12UE,Huntingdonshire District Council,07/02/2013,119282,3379.5,Dining Chairs Uk Ltd,CR455457,Leisure Centres Capital,Furniture,200
http://statistics.data.gov.uk/id/local-authority/12UE,Huntingdonshire District Council,07/02/2013,119281,1126.5,Dining Chairs Uk Ltd,CR455457,Leisure Centres Capital,Furniture,200
http://statistics.data.gov.uk/id/local-authority/12UE,Huntingdonshire District Council,07/02/2013,120503,502.2,Strictly Tables And Chairs Ltd,CR455527,One Leisure St Ives,Furniture,200
http://statistics.data.gov.uk/id/local-authority/12UE,Huntingdonshire District Council,14/02/2013,120869,1248.58,E-On Energy,CR416430,E F H And Depots,Gas,421
http://statistics.data.gov.uk/id/local-authority/12UE,Huntingdonshire District Council,14/02/2013,120875,5507.05,E-On Energy,CR416430,One Leisure Huntingdon,Gas,421
http://statistics.data.gov.uk/id/local-authority/12UE,Huntingdonshire District Council,14/02/2013,120871,1461.23,E-On Energy,CR416430,One Leisure Huntingdon,Gas,421
http://statistics.data.gov.uk/id/local-authority/12UE,Huntingdonshire District Council,14/02/2013,120868,3070.88,E-On Energy,CR416430,One Leisure Ramsey,Gas,421
http://statistics.data.gov.uk/id/local-authority/12UE,Huntingdonshire District Council,14/02/2013,120872,2391.44,E-On Energy,CR416430,One Leisure Sawtry,Gas,421
http://statistics.data.gov.uk/id/local-authority/12UE,Huntingdonshire District Council,14/02/2013,120867,6689.28,E-On Energy,CR416430,One Leisure St Ives,Gas,421
http://statistics.data.gov.uk/id/local-authority/12UE,Huntingdonshire District Council,14/02/2013,120870,946.26,E-On Energy,CR416430,One Leisure St Ives,Gas,421
http://statistics.data.gov.uk/id/local-authority/12UE,Huntingdonshire District Council,14/02/2013,120876,4346.44,E-On Energy,CR416430,One Leisure St Neots,Gas,421
http://statistics.data.gov.uk/id/local-authority/12UE,Huntingdonshire District Council,14/02/2013,120873,550.02,E-On Energy,CR416430,One Leisure St Neots,Gas,421
http://statistics.data.gov.uk/id/local-authority/12UE,Huntingdonshire District Council,14/02/2013,120878,4727.74,E-On Energy,CR416430,Pathfinder House Site,Gas,421
http://statistics.data.gov.uk/id/local-authority/12UE,Huntingdonshire District Council,19/02/2013,546665,720,Dms Home Improvements & Electrical,CR479202,Property Development And Mgt,Gen Building Mtce - Planned,304
http://statistics.data.gov.uk/id/local-authority/12UE,Huntingdonshire District Council,19/02/2013,546666,1850,Dms Home Improvements & Electrical,CR479202,Property Development And Mgt,Gen Building Mtce - Planned,304
http://statistics.data.gov.uk/id/local-authority/12UE,Huntingdonshire District Council,28/02/2013,121101,1862.28,Watts-Up Ltd,CR480243,Hinchingbrooke Country Park,Gen Building Mtce - Planned,304
http://statistics.data.gov.uk/id/local-authority/12UE,Huntingdonshire District Council,21/02/2013,121117,25313.04,Milk Leisure Ltd,CR455268,Leisure Centres Capital,Gen Building Mtce - Planned,304
http://statistics.data.gov.uk/id/local-authority/12UE,Huntingdonshire District Council,14/02/2013,120914,479883.96,R G Carter Peterborough,CR401511,Leisure Centres Capital,Gen Building Mtce - Planned,304
http://statistics.data.gov.uk/id/local-authority/12UE,Huntingdonshire District Council,07/02/2013,120388,1128.64,Aragon Homes Ltd,CR132307,One Leisure Huntingdon,Gen Building Mtce - Planned,304
http://statistics.data.gov.uk/id/local-authority/12UE,Huntingdonshire District Council,07/02/2013,119646,1371.83,Roger Wilson Electronics,CR028041,One Leisure Huntingdon,Gen Building Mtce - Planned,304
http://statistics.data.gov.uk/id/local-authority/12UE,Huntingdonshire District Council,07/02/2013,120321,821.81,Ecocleen Services Limited,CR406985,One Leisure Ramsey,Gen Building Mtce - Planned,304
http://statistics.data.gov.uk/id/local-authority/12UE,Huntingdonshire District Council,07/02/2013,120345,1089.3,Ecocleen Services Limited,CR406985,One Leisure Sawtry,Gen Building Mtce - Planned,304
http://statistics.data.gov.uk/id/local-authority/12UE,Huntingdonshire District Council,20/02/2013,120913,1159.2,Burgin Ltd,CR482438,One Leisure St Ives,Gen Building Mtce - Planned,304
http://statistics.data.gov.uk/id/local-authority/12UE,Huntingdonshire District Council,07/02/2013,118728,3705,Hygiene Solutions,CR477443,Pathfinder House Site,Gen Building Mtce - Planned,304
http://statistics.data.gov.uk/id/local-authority/12UE,Huntingdonshire District Council,07/02/2013,119597,2427.55,Luminus Homes,CR401276,Housing Services Other,Gen Building Mtce - Responsive,303
http://statistics.data.gov.uk/id/local-authority/12UE,Huntingdonshire District Council,21/02/2013,121191,13440,Craftsman Quality Lockers Ltd,CR410022,Leisure Centres Capital,Gen Building Mtce - Responsive,303
http://statistics.data.gov.uk/id/local-authority/12UE,Huntingdonshire District Council,07/02/2013,119290,1345.62,Fire And Safety Solutions Ltd,CR479928,Leisure Centres Capital,Gen Building Mtce - Responsive,303
http://statistics.data.gov.uk/id/local-authority/12UE,Huntingdonshire District Council,20/02/2013,120916,1843.96,Roger Wilson Electronics,CR028041,Leisure Centres Capital,Gen Building Mtce - Responsive,303
http://statistics.data.gov.uk/id/local-authority/12UE,Huntingdonshire District Council,07/02/2013,120297,3094.8,Stanair Industrial Door Services Ltd,CR403493,One Leisure Ramsey,Gen Building Mtce - Responsive,303
http://statistics.data.gov.uk/id/local-authority/12UE,Huntingdonshire District Council,07/02/2013,120331,590.4,Doorwise,CR033538,One Leisure St Ives,Gen Building Mtce - Responsive,303
http://statistics.data.gov.uk/id/local-authority/12UE,Huntingdonshire District Council,07/02/2013,119475,576,N & C Glass Ltd,CR415450,One Leisure St Ives,Gen Building Mtce - Responsive,303
http://statistics.data.gov.uk/id/local-authority/12UE,Huntingdonshire District Council,20/02/2013,120915,668.67,Roger Wilson Electronics,CR028041,One Leisure St Ives,Gen Building Mtce - Responsive,303
http://statistics.data.gov.uk/id/local-authority/12UE,Huntingdonshire District Council,07/02/2013,120335,968.83,Roger Wilson Electronics,CR028041,One Leisure St Ives,Gen Building Mtce - Responsive,303
http://statistics.data.gov.uk/id/local-authority/12UE,Huntingdonshire District Council,21/02/2013,121199,517.57,Roger Wilson Electronics,CR028041,One Leisure St Ives,Gen Building Mtce - Responsive,303
http://statistics.data.gov.uk/id/local-authority/12UE,Huntingdonshire District Council,07/02/2013,120040,850.2,Portakabin Ltd,CR478566,Miscellaneous Grants,Grants (Paid Out),800
http://statistics.data.gov.uk/id/local-authority/12UE,Huntingdonshire District Council,21/02/2013,119979,118500,Luminus Homes,CR401276,Social Housing Grant,Grants (Paid Out),800
http://statistics.data.gov.uk/id/local-authority/12UE,Huntingdonshire District Council,14/02/2013,545831,624,Abbey College,CR478009,One Leisure Ramsey,Grounds Mtce Contractors,351
http://statistics.data.gov.uk/id/local-authority/12UE,Huntingdonshire District Council,28/02/2013,120300,8432.4,Technical Surfaces Ltd,CR031941,Leisure Centres Capital,Grounds Mtce Contractors,351
http://statistics.data.gov.uk/id/local-authority/12UE,Huntingdonshire District Council,07/02/2013,120006,2447.96,Staffline Group,CR416827,Domestic Refuse,Hired Staff,100
http://statistics.data.gov.uk/id/local-authority/12UE,Huntingdonshire District Council,07/02/2013,120288,1930.85,Staffline Group,CR416827,Domestic Refuse,Hired Staff,100
http://statistics.data.gov.uk/id/local-authority/12UE,Huntingdonshire District Council,07/02/2013,120005,1231.14,Staffline Group,CR416827,Domestic Refuse,Hired Staff,100
http://statistics.data.gov.uk/id/local-authority/12UE,Huntingdonshire District Council,07/02/2013,120289,1189.67,Staffline Group,CR416827,Domestic Refuse,Hired Staff,100
http://statistics.data.gov.uk/id/local-authority/12UE,Huntingdonshire District Council,28/02/2013,121207,615.38,Staffline Group,CR416827,Domestic Refuse,Hired Staff,100
http://statistics.data.gov.uk/id/local-authority/12UE,Huntingdonshire District Council,07/02/2013,119072,548.78,Lightning Recruitment,CR028184,Head Of Imd,Hired Staff,100
http://statistics.data.gov.uk/id/local-authority/12UE,Huntingdonshire District Council,07/02/2013,119513,548.78,Lightning Recruitment,CR028184,Head Of Imd,Hired Staff,100
http://statistics.data.gov.uk/id/local-authority/12UE,Huntingdonshire District Council,07/02/2013,119804,548.78,Lightning Recruitment,CR028184,Head Of Imd,Hired Staff,100
http://statistics.data.gov.uk/id/local-authority/12UE,Huntingdonshire District Council,07/02/2013,119796,1260,Premier It Recruitment Ltd,CR454029,Helpdesk,Hired Staff,100
http://statistics.data.gov.uk/id/local-authority/12UE,Huntingdonshire District Council,07/02/2013,120224,1260,Premier It Recruitment Ltd,CR454029,Helpdesk,Hired Staff,100
http://statistics.data.gov.uk/id/local-authority/12UE,Huntingdonshire District Council,28/02/2013,120892,1260,Premier It Recruitment Ltd,CR454029,Helpdesk,Hired Staff,100
http://statistics.data.gov.uk/id/local-authority/12UE,Huntingdonshire District Council,07/02/2013,119602,1194,Headley Stoke Associates,CR480870,Home Improvement Agency,Hired Staff,100
http://statistics.data.gov.uk/id/local-authority/12UE,Huntingdonshire District Council,07/02/2013,119604,600,Headley Stoke Associates,CR480870,Home Improvement Agency,Hired Staff,100
http://statistics.data.gov.uk/id/local-authority/12UE,Huntingdonshire District Council,07/02/2013,120369,974.14,James Andrews Recruitment,CR453753,Housing Management Units,Hired Staff,100
http://statistics.data.gov.uk/id/local-authority/12UE,Huntingdonshire District Council,07/02/2013,119978,934.64,James Andrews Recruitment,CR453753,Housing Management Units,Hired Staff,100
http://statistics.data.gov.uk/id/local-authority/12UE,Huntingdonshire District Council,07/02/2013,119233,855.66,James Andrews Recruitment,CR453753,Housing Management Units,Hired Staff,100
http://statistics.data.gov.uk/id/local-authority/12UE,Huntingdonshire District Council,07/02/2013,119601,783.26,James Andrews Recruitment,CR453753,Housing Management Units,Hired Staff,100
http://statistics.data.gov.uk/id/local-authority/12UE,Huntingdonshire District Council,21/02/2013,121126,666,Affinity Nationwide Support Services,CR482612,One Leisure St Ives,Hired Staff,100
http://statistics.data.gov.uk/id/local-authority/12UE,Huntingdonshire District Council,07/02/2013,120293,532.8,Affinity Nationwide Support Services,CR482612,One Leisure St Ives,Hired Staff,100
http://statistics.data.gov.uk/id/local-authority/12UE,Huntingdonshire District Council,07/02/2013,120003,2986.98,Staffline Group,CR416827,Recycling,Hired Staff,100
http://statistics.data.gov.uk/id/local-authority/12UE,Huntingdonshire District Council,07/02/2013,120290,2657,Staffline Group,CR416827,Recycling,Hired Staff,100
http://statistics.data.gov.uk/id/local-authority/12UE,Huntingdonshire District Council,28/02/2013,121216,1580.04,Staffline Group,CR416827,Recycling,Hired Staff,100
http://statistics.data.gov.uk/id/local-authority/12UE,Huntingdonshire District Council,14/02/2013,120833,1065.6,Morgan Hunt Public Uk Ltd,CR415693,Revenue Services Mus,Hired Staff,100
http://statistics.data.gov.uk/id/local-authority/12UE,Huntingdonshire District Council,28/02/2013,121444,1065.6,Morgan Hunt Public Uk Ltd,CR415693,Revenue Services Mus,Hired Staff,100
http://statistics.data.gov.uk/id/local-authority/12UE,Huntingdonshire District Council,28/02/2013,121442,1058.4,Morgan Hunt Public Uk Ltd,CR415693,Revenue Services Mus,Hired Staff,100
http://statistics.data.gov.uk/id/local-authority/12UE,Huntingdonshire District Council,07/02/2013,120176,1008,Morgan Hunt Public Uk Ltd,CR415693,Revenue Services Mus,Hired Staff,100
http://statistics.data.gov.uk/id/local-authority/12UE,Huntingdonshire District Council,07/02/2013,120360,1008,Morgan Hunt Public Uk Ltd,CR415693,Revenue Services Mus,Hired Staff,100
http://statistics.data.gov.uk/id/local-authority/12UE,Huntingdonshire District Council,28/02/2013,121441,894.72,Morgan Hunt Public Uk Ltd,CR415693,Revenue Services Mus,Hired Staff,100
http://statistics.data.gov.uk/id/local-authority/12UE,Huntingdonshire District Council,28/02/2013,121433,844.8,Morgan Hunt Public Uk Ltd,CR415693,Revenue Services Mus,Hired Staff,100
http://statistics.data.gov.uk/id/local-authority/12UE,Huntingdonshire District Council,28/02/2013,121205,944.04,Staffline Group,CR416827,Street Cleaning,Hired Staff,100
http://statistics.data.gov.uk/id/local-authority/12UE,Huntingdonshire District Council,07/02/2013,120004,525.25,Staffline Group,CR416827,Street Cleaning,Hired Staff,100
http://statistics.data.gov.uk/id/local-authority/12UE,Huntingdonshire District Council,07/02/2013,120357,109200,Cambridgeshire County Council,CR017440,Human Resources,Human Resources Services,779
http://statistics.data.gov.uk/id/local-authority/12UE,Huntingdonshire District Council,07/02/2013,119242,1530,Virgin Media,CR412057,Helpdesk,I T Line Rental,248
http://statistics.data.gov.uk/id/local-authority/12UE,Huntingdonshire District Council,28/02/2013,121429,1231.2,Kennedys,CR478788,Financial Services,Insurance Public Liability,160
http://statistics.data.gov.uk/id/local-authority/12UE,Huntingdonshire District Council,28/02/2013,121421,544.64,Local Government Association,CR400598,Central & Democratic Serv Mu,Legal Fees,729
http://statistics.data.gov.uk/id/local-authority/12UE,Huntingdonshire District Council,28/02/2013,121428,1124.04,Freeth Cartwright Llp,CR480787,Estates Properties Capital,Legal Fees,729
http://statistics.data.gov.uk/id/local-authority/12UE,Huntingdonshire District Council,07/02/2013,120184,1523.12,Sarfo Solicitors,CR415973,Revenue Services Mus,Legal Fees,729
http://statistics.data.gov.uk/id/local-authority/12UE,Huntingdonshire District Council,07/02/2013,120181,986.41,Sarfo Solicitors,CR415973,Revenue Services Mus,Legal Fees,729
http://statistics.data.gov.uk/id/local-authority/12UE,Huntingdonshire District Council,07/02/2013,120182,671.71,Sarfo Solicitors,CR415973,Revenue Services Mus,Legal Fees,729
http://statistics.data.gov.uk/id/local-authority/12UE,Huntingdonshire District Council,07/02/2013,119666,610,Sports Leaders Uk,CR412312,Leisure Development,Licences,730
http://statistics.data.gov.uk/id/local-authority/12UE,Huntingdonshire District Council,07/02/2013,119289,349.54,Experian Ltd,CR401513,One Leisure Huntingdon,Licences,730
http://statistics.data.gov.uk/id/local-authority/12UE,Huntingdonshire District Council,07/02/2013,119289,349.52,Experian Ltd,CR401513,One Leisure Ramsey,Licences,730
http://statistics.data.gov.uk/id/local-authority/12UE,Huntingdonshire District Council,07/02/2013,119289,349.54,Experian Ltd,CR401513,One Leisure Sawtry,Licences,730
http://statistics.data.gov.uk/id/local-authority/12UE,Huntingdonshire District Council,07/02/2013,119289,349.54,Experian Ltd,CR401513,One Leisure St Ives,Licences,730
http://statistics.data.gov.uk/id/local-authority/12UE,Huntingdonshire District Council,07/02/2013,119289,349.54,Experian Ltd,CR401513,One Leisure St Neots,Licences,730
http://statistics.data.gov.uk/id/local-authority/12UE,Huntingdonshire District Council,07/02/2013,119232,1764.48,King Street Housing Society,CR409301,Accommodation For Homeless,Management Charge,733
http://statistics.data.gov.uk/id/local-authority/12UE,Huntingdonshire District Council,07/02/2013,120374,990,King Street Housing Society,CR409301,Accommodation For Homeless,Management Charge,733
http://statistics.data.gov.uk/id/local-authority/12UE,Huntingdonshire District Council,07/02/2013,119231,526.41,King Street Housing Society,CR409301,Accommodation For Homeless,Management Charge,733
http://statistics.data.gov.uk/id/local-authority/12UE,Huntingdonshire District Council,07/02/2013,119614,600,Locata Housing Services Ltd,CR478274,Choice Based Lettings (Ex Chr),Management Charge,733
http://statistics.data.gov.uk/id/local-authority/12UE,Huntingdonshire District Council,07/02/2013,119652,11782.27,South Cambridgeshire District Council,CR405127,Choice Based Lettings (Ex Chr),Management Charge,733
http://statistics.data.gov.uk/id/local-authority/12UE,Huntingdonshire District Council,28/02/2013,121223,256.43,United Wipes,CR477773,Domestic Refuse,Materials,550
http://statistics.data.gov.uk/id/local-authority/12UE,Huntingdonshire District Council,28/02/2013,121223,256.42,United Wipes,CR477773,Grounds Maintenance (Combined),Materials,550
http://statistics.data.gov.uk/id/local-authority/12UE,Huntingdonshire District Council,28/02/2013,121081,747.97,Huntingdon Timber Supplies,CR482513,Hinchingbrooke Country Park,Materials,550
http://statistics.data.gov.uk/id/local-authority/12UE,Huntingdonshire District Council,07/02/2013,120389,176.76,Decleor Uk Ltd,CR480786,One Leisure Huntingdon,Materials,550
http://statistics.data.gov.uk/id/local-authority/12UE,Huntingdonshire District Council,07/02/2013,119933,34.1,Booker Cash And Carry,CR027611,One Leisure St Ives,Materials,550
http://statistics.data.gov.uk/id/local-authority/12UE,Huntingdonshire District Council,28/02/2013,120908,80.48,Booker Cash And Carry,CR027611,One Leisure St Ives,Materials,550
http://statistics.data.gov.uk/id/local-authority/12UE,Huntingdonshire District Council,28/02/2013,121679,96.21,Booker Cash And Carry,CR027611,One Leisure St Ives,Materials,550
http://statistics.data.gov.uk/id/local-authority/12UE,Huntingdonshire District Council,07/02/2013,119560,71.33,Booker Cash And Carry,CR027611,One Leisure St Ives,Materials,550
http://statistics.data.gov.uk/id/local-authority/12UE,Huntingdonshire District Council,28/02/2013,121666,2012.36,Gerrard Iternational,CR480778,One Leisure St Ives,Materials,550
http://statistics.data.gov.uk/id/local-authority/12UE,Huntingdonshire District Council,28/02/2013,121663,891.72,Gerrard Iternational,CR480778,One Leisure St Ives,Materials,550
http://statistics.data.gov.uk/id/local-authority/12UE,Huntingdonshire District Council,20/02/2013,120915,672.1,Roger Wilson Electronics,CR028041,One Leisure St Ives,Materials,550
http://statistics.data.gov.uk/id/local-authority/12UE,Huntingdonshire District Council,28/02/2013,121223,256.43,United Wipes,CR477773,Street Cleaning,Materials,550
http://statistics.data.gov.uk/id/local-authority/12UE,Huntingdonshire District Council,07/02/2013,120389,345.64,Decleor Uk Ltd,CR480786,One Leisure Huntingdon,Materials For Resale,570
http://statistics.data.gov.uk/id/local-authority/12UE,Huntingdonshire District Council,07/02/2013,120402,993.26,Swimrite Suppliers Ltd (Srs Leisure),CR478711,One Leisure Huntingdon,Materials For Resale,570
http://statistics.data.gov.uk/id/local-authority/12UE,Huntingdonshire District Council,28/02/2013,121659,1493.98,Gerrard Iternational,CR480778,One Leisure St Ives,Materials For Resale,570
http://statistics.data.gov.uk/id/local-authority/12UE,Huntingdonshire District Council,21/02/2013,121199,79.13,Roger Wilson Electronics,CR028041,One Leisure St Ives,Materials For Resale,570
http://statistics.data.gov.uk/id/local-authority/12UE,Huntingdonshire District Council,07/02/2013,119674,5699.88,Hinchingbrooke Healthcare Nhs,CR003003,Human Resources,Medical Fees,734
http://statistics.data.gov.uk/id/local-authority/12UE,Huntingdonshire District Council,07/02/2013,120384,113.74,Vodafone Limited,CR029120,Animal Welfare,Mobile Telephones & Radios,241
http://statistics.data.gov.uk/id/local-authority/12UE,Huntingdonshire District Council,07/02/2013,120384,36.52,Vodafone Limited,CR029120,Business Analysis,Mobile Telephones & Radios,241
http://statistics.data.gov.uk/id/local-authority/12UE,Huntingdonshire District Council,07/02/2013,120384,75.71,Vodafone Limited,CR029120,C C T V,Mobile Telephones & Radios,241
http://statistics.data.gov.uk/id/local-authority/12UE,Huntingdonshire District Council,07/02/2013,120384,10.84,Vodafone Limited,CR029120,Call Centre,Mobile Telephones & Radios,241
http://statistics.data.gov.uk/id/local-authority/12UE,Huntingdonshire District Council,07/02/2013,120384,1080.6,Vodafone Limited,CR029120,Car Park Management,Mobile Telephones & Radios,241
http://statistics.data.gov.uk/id/local-authority/12UE,Huntingdonshire District Council,07/02/2013,120384,186.56,Vodafone Limited,CR029120,Central & Democratic Serv Mu,Mobile Telephones & Radios,241
http://statistics.data.gov.uk/id/local-authority/12UE,Huntingdonshire District Council,07/02/2013,120384,91.19,Vodafone Limited,CR029120,Commerce & Tech Director Mus,Mobile Telephones & Radios,241
http://statistics.data.gov.uk/id/local-authority/12UE,Huntingdonshire District Council,07/02/2013,120384,68.74,Vodafone Limited,CR029120,Community Safety,Mobile Telephones & Radios,241
http://statistics.data.gov.uk/id/local-authority/12UE,Huntingdonshire District Council,07/02/2013,120384,436.46,Vodafone Limited,CR029120,Community Services M Us,Mobile Telephones & Radios,241
http://statistics.data.gov.uk/id/local-authority/12UE,Huntingdonshire District Council,07/02/2013,120384,437.78,Vodafone Limited,CR029120,Corporate Office,Mobile Telephones & Radios,241
http://statistics.data.gov.uk/id/local-authority/12UE,Huntingdonshire District Council,07/02/2013,120384,92.16,Vodafone Limited,CR029120,Countryside Management,Mobile Telephones & Radios,241
http://statistics.data.gov.uk/id/local-authority/12UE,Huntingdonshire District Council,07/02/2013,120384,76.21,Vodafone Limited,CR029120,Customer Service Centres,Mobile Telephones & Radios,241
http://statistics.data.gov.uk/id/local-authority/12UE,Huntingdonshire District Council,07/02/2013,120384,68.4,Vodafone Limited,CR029120,Development Team,Mobile Telephones & Radios,241
http://statistics.data.gov.uk/id/local-authority/12UE,Huntingdonshire District Council,07/02/2013,120384,7.44,Vodafone Limited,CR029120,Document Centre,Mobile Telephones & Radios,241
http://statistics.data.gov.uk/id/local-authority/12UE,Huntingdonshire District Council,07/02/2013,119537,6325.2,Direct Telecom Services Ltd,CR001981,Domestic Refuse,Mobile Telephones & Radios,241
http://statistics.data.gov.uk/id/local-authority/12UE,Huntingdonshire District Council,07/02/2013,120384,1218.87,Vodafone Limited,CR029120,Environmental Health M Us,Mobile Telephones & Radios,241
http://statistics.data.gov.uk/id/local-authority/12UE,Huntingdonshire District Council,07/02/2013,120384,869.39,Vodafone Limited,CR029120,Environmental Management,Mobile Telephones & Radios,241
http://statistics.data.gov.uk/id/local-authority/12UE,Huntingdonshire District Council,07/02/2013,120384,7.33,Vodafone Limited,CR029120,Facilities Mgt,Mobile Telephones & Radios,241
http://statistics.data.gov.uk/id/local-authority/12UE,Huntingdonshire District Council,07/02/2013,120384,22.78,Vodafone Limited,CR029120,Financial Services Mus,Mobile Telephones & Radios,241
http://statistics.data.gov.uk/id/local-authority/12UE,Huntingdonshire District Council,07/02/2013,120384,70.79,Vodafone Limited,CR029120,Head Of Imd,Mobile Telephones & Radios,241
http://statistics.data.gov.uk/id/local-authority/12UE,Huntingdonshire District Council,07/02/2013,120384,161.09,Vodafone Limited,CR029120,Helpdesk,Mobile Telephones & Radios,241
http://statistics.data.gov.uk/id/local-authority/12UE,Huntingdonshire District Council,07/02/2013,120384,26.12,Vodafone Limited,CR029120,Hinchingbrooke Country Park,Mobile Telephones & Radios,241
http://statistics.data.gov.uk/id/local-authority/12UE,Huntingdonshire District Council,07/02/2013,120384,109.17,Vodafone Limited,CR029120,Housing Management Units,Mobile Telephones & Radios,241
http://statistics.data.gov.uk/id/local-authority/12UE,Huntingdonshire District Council,07/02/2013,120384,113.12,Vodafone Limited,CR029120,Human Resources,Mobile Telephones & Radios,241
http://statistics.data.gov.uk/id/local-authority/12UE,Huntingdonshire District Council,07/02/2013,120384,78.31,Vodafone Limited,CR029120,Information Manager,Mobile Telephones & Radios,241
http://statistics.data.gov.uk/id/local-authority/12UE,Huntingdonshire District Council,07/02/2013,120384,121.15,Vodafone Limited,CR029120,Leisure Development,Mobile Telephones & Radios,241
http://statistics.data.gov.uk/id/local-authority/12UE,Huntingdonshire District Council,07/02/2013,120384,119.24,Vodafone Limited,CR029120,Managing Director (Cpp),Mobile Telephones & Radios,241
http://statistics.data.gov.uk/id/local-authority/12UE,Huntingdonshire District Council,07/02/2013,120384,253.25,Vodafone Limited,CR029120,Member Allowances & Support,Mobile Telephones & Radios,241
http://statistics.data.gov.uk/id/local-authority/12UE,Huntingdonshire District Council,07/02/2013,120384,95.53,Vodafone Limited,CR029120,Misc Countryside Sites,Mobile Telephones & Radios,241
http://statistics.data.gov.uk/id/local-authority/12UE,Huntingdonshire District Council,07/02/2013,120384,129.11,Vodafone Limited,CR029120,One Leisure St Ives,Mobile Telephones & Radios,241
http://statistics.data.gov.uk/id/local-authority/12UE,Huntingdonshire District Council,07/02/2013,120384,289.67,Vodafone Limited,CR029120,One Leisure St Neots,Mobile Telephones & Radios,241
http://statistics.data.gov.uk/id/local-authority/12UE,Huntingdonshire District Council,07/02/2013,120384,1562.6,Vodafone Limited,CR029120,Operations Mgt Units,Mobile Telephones & Radios,241
http://statistics.data.gov.uk/id/local-authority/12UE,Huntingdonshire District Council,07/02/2013,120384,71.87,Vodafone Limited,CR029120,Other Operating Inc & Expend,Mobile Telephones & Radios,241
http://statistics.data.gov.uk/id/local-authority/12UE,Huntingdonshire District Council,07/02/2013,120384,26.18,Vodafone Limited,CR029120,Pathfinder House Site,Mobile Telephones & Radios,241
http://statistics.data.gov.uk/id/local-authority/12UE,Huntingdonshire District Council,07/02/2013,120384,46.66,Vodafone Limited,CR029120,Paxton Pits,Mobile Telephones & Radios,241
http://statistics.data.gov.uk/id/local-authority/12UE,Huntingdonshire District Council,07/02/2013,120384,39.1,Vodafone Limited,CR029120,Pest Control,Mobile Telephones & Radios,241
http://statistics.data.gov.uk/id/local-authority/12UE,Huntingdonshire District Council,07/02/2013,120384,705.7,Vodafone Limited,CR029120,Planning M U'S,Mobile Telephones & Radios,241
http://statistics.data.gov.uk/id/local-authority/12UE,Huntingdonshire District Council,07/02/2013,120384,603.98,Vodafone Limited,CR029120,Revenue Services Mus,Mobile Telephones & Radios,241
http://statistics.data.gov.uk/id/local-authority/12UE,Huntingdonshire District Council,07/02/2013,120384,129.6,Vodafone Limited,CR029120,Software Capital,Mobile Telephones & Radios,241
http://statistics.data.gov.uk/id/local-authority/12UE,Huntingdonshire District Council,07/02/2013,120384,7.17,Vodafone Limited,CR029120,Street Naming,Mobile Telephones & Radios,241
http://statistics.data.gov.uk/id/local-authority/12UE,Huntingdonshire District Council,07/02/2013,120384,10.68,Vodafone Limited,CR029120,Transportation Mgt,Mobile Telephones & Radios,241
http://statistics.data.gov.uk/id/local-authority/12UE,Huntingdonshire District Council,07/02/2013,119934,2706.36,Khipu Networks Ltd,CR482348,Software Capital,Network Hardware,205
http://statistics.data.gov.uk/id/local-authority/12UE,Huntingdonshire District Council,07/02/2013,119797,673.45,Communications Solutions Uk Ltd,COMMUNIC,Call Centre,Other I T Hardware,203
http://statistics.data.gov.uk/id/local-authority/12UE,Huntingdonshire District Council,07/02/2013,120501,3644.02,Gladstone Mrm,CR405717,One Leisure Huntingdon,Other I T Hardware,203
http://statistics.data.gov.uk/id/local-authority/12UE,Huntingdonshire District Council,07/02/2013,120225,586.6,Dell Computer Corporation,CR408320,Revenue Services Mus,Other I T Hardware,203
http://statistics.data.gov.uk/id/local-authority/12UE,Huntingdonshire District Council,07/02/2013,120486,4393.92,Comtec,CR480140,Software Capital,Other I T Hardware,203
http://statistics.data.gov.uk/id/local-authority/12UE,Huntingdonshire District Council,07/02/2013,118722,72.38,Link Support Services (Uk) Lts,CR482303,Member Allowances & Support,Other Office Expenses,295
http://statistics.data.gov.uk/id/local-authority/12UE,Huntingdonshire District Council,07/02/2013,120222,1173.19,Dell Computer Corporation,CR408320,Helpdesk,P C'S And Accessories,201
http://statistics.data.gov.uk/id/local-authority/12UE,Huntingdonshire District Council,07/02/2013,119518,641.16,Xerox Office Supplies,CR481184,Document Centre,Paper,562
http://statistics.data.gov.uk/id/local-authority/12UE,Huntingdonshire District Council,07/02/2013,118324,-1743.55,Xerox Office Supplies,CR481184,Document Centre,Paper,562
http://statistics.data.gov.uk/id/local-authority/12UE,Huntingdonshire District Council,28/02/2013,120273,831,Burgin Ltd,CR482438,Pathfinder House Site,Plant & Equipment Maintenance,380
http://statistics.data.gov.uk/id/local-authority/12UE,Huntingdonshire District Council,07/02/2013,119797,9.54,Communications Solutions Uk Ltd,COMMUNIC,Call Centre,Postage,231
http://statistics.data.gov.uk/id/local-authority/12UE,Huntingdonshire District Council,07/02/2013,120521,36.01,T N T Post London Ltd,CR479965,Call Centre,Postage,231
http://statistics.data.gov.uk/id/local-authority/12UE,Huntingdonshire District Council,07/02/2013,119794,1372.96,Royal Mail,CR027083,Document Centre,Postage,231
http://statistics.data.gov.uk/id/local-authority/12UE,Huntingdonshire District Council,07/02/2013,120520,700.5,Royal Mail,CR027083,Document Centre,Postage,231
http://statistics.data.gov.uk/id/local-authority/12UE,Huntingdonshire District Council,07/02/2013,120522,993.78,T N T Post London Ltd,CR479965,Document Centre,Postage,231
http://statistics.data.gov.uk/id/local-authority/12UE,Huntingdonshire District Council,07/02/2013,120521,1239.62,T N T Post London Ltd,CR479965,Document Centre,Postage,231
http://statistics.data.gov.uk/id/local-authority/12UE,Huntingdonshire District Council,07/02/2013,119532,1573.55,T N T Post London Ltd,CR479965,Document Centre,Postage,231
http://statistics.data.gov.uk/id/local-authority/12UE,Huntingdonshire District Council,07/02/2013,119523,693.08,T N T Post London Ltd,CR479965,Document Centre,Postage,231
http://statistics.data.gov.uk/id/local-authority/12UE,Huntingdonshire District Council,07/02/2013,120521,313.14,T N T Post London Ltd,CR479965,Eh Health & Safety,Postage,231
http://statistics.data.gov.uk/id/local-authority/12UE,Huntingdonshire District Council,07/02/2013,120522,151.42,T N T Post London Ltd,CR479965,Elections,Postage,231
http://statistics.data.gov.uk/id/local-authority/12UE,Huntingdonshire District Council,07/02/2013,120521,75.18,T N T Post London Ltd,CR479965,Elections,Postage,231
http://statistics.data.gov.uk/id/local-authority/12UE,Huntingdonshire District Council,07/02/2013,119532,218.9,T N T Post London Ltd,CR479965,Elections,Postage,231
http://statistics.data.gov.uk/id/local-authority/12UE,Huntingdonshire District Council,07/02/2013,119523,710.2,T N T Post London Ltd,CR479965,Elections,Postage,231
http://statistics.data.gov.uk/id/local-authority/12UE,Huntingdonshire District Council,07/02/2013,120521,313.14,T N T Post London Ltd,CR479965,Food Safety,Postage,231
http://statistics.data.gov.uk/id/local-authority/12UE,Huntingdonshire District Council,07/02/2013,119532,464.38,T N T Post London Ltd,CR479965,Internal Services Holding,Postage,231
http://statistics.data.gov.uk/id/local-authority/12UE,Huntingdonshire District Council,07/02/2013,120522,2064.86,T N T Post London Ltd,CR479965,Revenue Services Mus,Postage,231
http://statistics.data.gov.uk/id/local-authority/12UE,Huntingdonshire District Council,07/02/2013,120521,709.51,T N T Post London Ltd,CR479965,Revenue Services Mus,Postage,231
http://statistics.data.gov.uk/id/local-authority/12UE,Huntingdonshire District Council,28/02/2013,121755,2070.06,Primesight  Ltd,CR132710,One Leisure Huntingdon,Printing (External),220
http://statistics.data.gov.uk/id/local-authority/12UE,Huntingdonshire District Council,07/02/2013,119894,168.4,The Menu Shop,CR480339,One Leisure Huntingdon,Printing (External),220
http://statistics.data.gov.uk/id/local-authority/12UE,Huntingdonshire District Council,28/02/2013,121752,840,Primesight  Ltd,CR132710,One Leisure Sawtry,Printing (External),220
http://statistics.data.gov.uk/id/local-authority/12UE,Huntingdonshire District Council,07/02/2013,119894,168.4,The Menu Shop,CR480339,One Leisure St Ives,Printing (External),220
http://statistics.data.gov.uk/id/local-authority/12UE,Huntingdonshire District Council,07/02/2013,119894,168.38,The Menu Shop,CR480339,One Leisure St Neots,Printing (External),220
http://statistics.data.gov.uk/id/local-authority/12UE,Huntingdonshire District Council,28/02/2013,121760,576,Uk Point Of Sale Group Ltd,CR478991,One Leisure St Neots,Printing (External),220
http://statistics.data.gov.uk/id/local-authority/12UE,Huntingdonshire District Council,28/02/2013,121087,3000,Barker Storey Matthews,CR400788,Corporate Office,Property Management,781
http://statistics.data.gov.uk/id/local-authority/12UE,Huntingdonshire District Council,28/02/2013,120856,1962,Cfl Estate Services,CR455208,Corporate Office,Property Management,781
http://statistics.data.gov.uk/id/local-authority/12UE,Huntingdonshire District Council,07/02/2013,120213,591.84,Alexandra,CR000238,Food Safety,Protective Clothing & Uniforms,163
http://statistics.data.gov.uk/id/local-authority/12UE,Huntingdonshire District Council,07/02/2013,119295,1230.5,Cambs County Council,CR089535,One Leisure St Ives,Recruitment - Advertising,120
http://statistics.data.gov.uk/id/local-authority/12UE,Huntingdonshire District Council,21/02/2013,118447,1849.34,Peter Lockyer Advertising Ltd,CR033030,One Leisure St Ives,Recruitment - Advertising,120
http://statistics.data.gov.uk/id/local-authority/12UE,Huntingdonshire District Council,07/02/2013,119061,904.2,Cambridgeshire County Council,CR006678,Operations Mgt Units,Recruitment - Advertising,120
http://statistics.data.gov.uk/id/local-authority/12UE,Huntingdonshire District Council,07/02/2013,120032,3779.1,Viridor Waste Management Ltd,CR482408,Recycling,Recycling Collections,747
http://statistics.data.gov.uk/id/local-authority/12UE,Huntingdonshire District Council,07/02/2013,120291,2692.03,Viridor Waste Management Ltd,CR482408,Recycling,Recycling Collections,747
http://statistics.data.gov.uk/id/local-authority/12UE,Huntingdonshire District Council,07/02/2013,119599,576,Alexanders,CR415843,Homelessness Management,Removal/Storage,750
http://statistics.data.gov.uk/id/local-authority/12UE,Huntingdonshire District Council,21/02/2013,546681,618.39,Anglian Water,CR000071,One Leisure Sawtry,Sewerage,433
http://statistics.data.gov.uk/id/local-authority/12UE,Huntingdonshire District Council,07/02/2013,120206,684.67,Anglian Water,CR000071,Pathfinder House Site,Sewerage,433
http://statistics.data.gov.uk/id/local-authority/12UE,Huntingdonshire District Council,07/02/2013,119317,3338.76,J Breheny Contractors Ltd,CR000314,Street Naming,Signs Erecting & Removal,361
http://statistics.data.gov.uk/id/local-authority/12UE,Huntingdonshire District Council,20/02/2013,120882,606,G Ferrara Ltd,CR478949,Bus Shelters,Sitework,359
http://statistics.data.gov.uk/id/local-authority/12UE,Huntingdonshire District Council,07/02/2013,119065,2658.7,J Breheny Contractors Ltd,CR000314,Bus Shelters,Sitework,359
http://statistics.data.gov.uk/id/local-authority/12UE,Huntingdonshire District Council,07/02/2013,119791,695.04,Primesight  Ltd,CR132710,Bus Shelters,Sitework,359
http://statistics.data.gov.uk/id/local-authority/12UE,Huntingdonshire District Council,07/02/2013,119932,648,Primesight  Ltd,CR132710,Bus Shelters,Sitework,359
http://statistics.data.gov.uk/id/local-authority/12UE,Huntingdonshire District Council,07/02/2013,119071,1285.15,J Breheny Contractors Ltd,CR000314,Community Services M Us,Sitework,359
http://statistics.data.gov.uk/id/local-authority/12UE,Huntingdonshire District Council,07/02/2013,119622,720,Marney Hall Consultancy Limited,CR480342,Energy Efficiency,Sitework,359
http://statistics.data.gov.uk/id/local-authority/12UE,Huntingdonshire District Council,07/02/2013,120260,1646.4,National Grid Gas Plc,CR480413,Estates Properties Capital,Sitework,359
http://statistics.data.gov.uk/id/local-authority/12UE,Huntingdonshire District Council,07/02/2013,119069,573.84,J Breheny Contractors Ltd,CR000314,Housing Services Other,Sitework,359
http://statistics.data.gov.uk/id/local-authority/12UE,Huntingdonshire District Council,07/02/2013,119064,2616,J Breheny Contractors Ltd,CR000314,Property Development And Mgt,Sitework,359
http://statistics.data.gov.uk/id/local-authority/12UE,Huntingdonshire District Council,07/02/2013,119066,1865,J Breheny Contractors Ltd,CR000314,Property Development And Mgt,Sitework,359
http://statistics.data.gov.uk/id/local-authority/12UE,Huntingdonshire District Council,07/02/2013,119070,6492.62,J Breheny Contractors Ltd,CR000314,Watercourses,Sitework,359
http://statistics.data.gov.uk/id/local-authority/12UE,Huntingdonshire District Council,07/02/2013,119063,2996.54,J Breheny Contractors Ltd,CR000314,Watercourses,Sitework,359
http://statistics.data.gov.uk/id/local-authority/12UE,Huntingdonshire District Council,07/02/2013,119653,3541.32,South Cambridgeshire District Council,CR405127,Choice Based Lettings (Ex Chr),Software,206
http://statistics.data.gov.uk/id/local-authority/12UE,Huntingdonshire District Council,26/02/2013,120383,28636.2,Northgate Information Solutions Uk Ltd,CR028925,Council Tax,Software,206
http://statistics.data.gov.uk/id/local-authority/12UE,Huntingdonshire District Council,21/02/2013,120378,2752.8,Eacs Ltd,CR404499,Helpdesk,Software,206
http://statistics.data.gov.uk/id/local-authority/12UE,Huntingdonshire District Council,26/02/2013,120383,11284.5,Northgate Information Solutions Uk Ltd,CR028925,Helpdesk,Software,206
http://statistics.data.gov.uk/id/local-authority/12UE,Huntingdonshire District Council,07/02/2013,119930,1740,Phoenix Software Ltd,CR031918,Helpdesk,Software,206
http://statistics.data.gov.uk/id/local-authority/12UE,Huntingdonshire District Council,07/02/2013,119474,216,Gladstone Mrm,CR405717,One Leisure Huntingdon,Software,206
http://statistics.data.gov.uk/id/local-authority/12UE,Huntingdonshire District Council,07/02/2013,119474,216,Gladstone Mrm,CR405717,One Leisure Ramsey,Software,206
http://statistics.data.gov.uk/id/local-authority/12UE,Huntingdonshire District Council,07/02/2013,119474,216,Gladstone Mrm,CR405717,One Leisure Sawtry,Software,206
http://statistics.data.gov.uk/id/local-authority/12UE,Huntingdonshire District Council,07/02/2013,119474,216,Gladstone Mrm,CR405717,One Leisure St Ives,Software,206
http://statistics.data.gov.uk/id/local-authority/12UE,Huntingdonshire District Council,07/02/2013,119474,216,Gladstone Mrm,CR405717,One Leisure St Neots,Software,206
http://statistics.data.gov.uk/id/local-authority/12UE,Huntingdonshire District Council,07/02/2013,120046,2415.6,Media 4 Digital It Services,CR482579,Public Accountability,Software,206
http://statistics.data.gov.uk/id/local-authority/12UE,Huntingdonshire District Council,07/02/2013,120381,5994,Intecpublicsector,CR478150,Revenue Services Mus,Software,206
http://statistics.data.gov.uk/id/local-authority/12UE,Huntingdonshire District Council,26/02/2013,120383,37996.2,Northgate Information Solutions Uk Ltd,CR028925,Revenue Services Mus,Software,206
http://statistics.data.gov.uk/id/local-authority/12UE,Huntingdonshire District Council,26/02/2013,120382,1286.57,Northgate Information Solutions Uk Ltd,CR028925,Revenue Services Mus,Software,206
http://statistics.data.gov.uk/id/local-authority/12UE,Huntingdonshire District Council,07/02/2013,120379,4271.34,Bytes Software Services Ltd,CR455210,Software Capital,Software,206
http://statistics.data.gov.uk/id/local-authority/12UE,Huntingdonshire District Council,07/02/2013,120377,82599.54,Phoenix Software Ltd,CR031918,Software Capital,Software,206
http://statistics.data.gov.uk/id/local-authority/12UE,Huntingdonshire District Council,21/02/2013,120237,14658,Northgate Public Sector Ltd,CR409869,Revenue Services Mus,Stationery,225
http://statistics.data.gov.uk/id/local-authority/12UE,Huntingdonshire District Council,14/02/2013,546345,600,North Kesteven District Council,CR480804,Building Control Other,Subcontractors,777
http://statistics.data.gov.uk/id/local-authority/12UE,Huntingdonshire District Council,07/02/2013,119579,1140,Clanpress King'S Lynn Ltd,CR413516,Document Centre,Subcontractors,777
http://statistics.data.gov.uk/id/local-authority/12UE,Huntingdonshire District Council,21/02/2013,121148,576,Dal-Rod Uk Ltd,CR002782,Nightsoil Collection,Subcontractors,777
http://statistics.data.gov.uk/id/local-authority/12UE,Huntingdonshire District Council,07/02/2013,120002,879.6,Pristine Condition,CR482653,Domestic Refuse,Training - Operational,131
http://statistics.data.gov.uk/id/local-authority/12UE,Huntingdonshire District Council,07/02/2013,120370,598.8,Ld Events,CR480610,Housing Management Units,Training - Operational,131
http://statistics.data.gov.uk/id/local-authority/12UE,Huntingdonshire District Council,07/02/2013,119498,1190,Wright Foundation,CR403086,Leisure Development,Training - Operational,131
http://statistics.data.gov.uk/id/local-authority/12UE,Huntingdonshire District Council,21/02/2013,121197,333.4,Magenta Coaching Solutions,CR480942,One Leisure Huntingdon,Training - Operational,131
http://statistics.data.gov.uk/id/local-authority/12UE,Huntingdonshire District Council,28/02/2013,121726,119,Wright Foundation,CR403086,One Leisure Huntingdon,Training - Operational,131
http://statistics.data.gov.uk/id/local-authority/12UE,Huntingdonshire District Council,21/02/2013,121197,333.4,Magenta Coaching Solutions,CR480942,One Leisure Ramsey,Training - Operational,131
http://statistics.data.gov.uk/id/local-authority/12UE,Huntingdonshire District Council,28/02/2013,121726,119,Wright Foundation,CR403086,One Leisure Ramsey,Training - Operational,131
http://statistics.data.gov.uk/id/local-authority/12UE,Huntingdonshire District Council,21/02/2013,121197,333.4,Magenta Coaching Solutions,CR480942,One Leisure Sawtry,Training - Operational,131
http://statistics.data.gov.uk/id/local-authority/12UE,Huntingdonshire District Council,28/02/2013,121726,119,Wright Foundation,CR403086,One Leisure Sawtry,Training - Operational,131
http://statistics.data.gov.uk/id/local-authority/12UE,Huntingdonshire District Council,21/02/2013,121197,333.4,Magenta Coaching Solutions,CR480942,One Leisure St Ives,Training - Operational,131
http://statistics.data.gov.uk/id/local-authority/12UE,Huntingdonshire District Council,28/02/2013,121726,119,Wright Foundation,CR403086,One Leisure St Ives,Training - Operational,131
http://statistics.data.gov.uk/id/local-authority/12UE,Huntingdonshire District Council,21/02/2013,121197,333.4,Magenta Coaching Solutions,CR480942,One Leisure St Neots,Training - Operational,131
http://statistics.data.gov.uk/id/local-authority/12UE,Huntingdonshire District Council,28/02/2013,121726,119,Wright Foundation,CR403086,One Leisure St Neots,Training - Operational,131
http://statistics.data.gov.uk/id/local-authority/12UE,Huntingdonshire District Council,07/02/2013,119479,768,Freight Transport Association,CR003104,Operations Mgt Units,Training - Operational,131
http://statistics.data.gov.uk/id/local-authority/12UE,Huntingdonshire District Council,07/02/2013,118722,1668,Link Support Services (Uk) Lts,CR482303,Member Allowances & Support,Training - Professional,130
http://statistics.data.gov.uk/id/local-authority/12UE,Huntingdonshire District Council,28/02/2013,120921,1585.07,Bandvulc Tyres Ltd,CR406810,Domestic Refuse,Tyres,630
http://statistics.data.gov.uk/id/local-authority/12UE,Huntingdonshire District Council,28/02/2013,120921,283.56,Bandvulc Tyres Ltd,CR406810,Street Cleaning,Tyres,630
http://statistics.data.gov.uk/id/local-authority/12UE,Huntingdonshire District Council,07/02/2013,119053,936.36,Days Contract Hire,CR417030,Fleet Management,Vehicle Finance Leases,602
http://statistics.data.gov.uk/id/local-authority/12UE,Huntingdonshire District Council,07/02/2013,120259,405.96,Days Contract Hire,CR417030,Fleet Management,Vehicle Finance Leases,602
http://statistics.data.gov.uk/id/local-authority/12UE,Huntingdonshire District Council,28/02/2013,121132,4692,Riverside Truck Rental Ltd,CR411499,Operations Mgt Units,Vehicle Hire,607
http://statistics.data.gov.uk/id/local-authority/12UE,Huntingdonshire District Council,07/02/2013,120519,1066.75,T C Harrison Ford,CR405072,Licences,Vehicle Inspection,618
http://statistics.data.gov.uk/id/local-authority/12UE,Huntingdonshire District Council,07/02/2013,119960,15078.22,Dennis Eagle Ltd,CR000200,Domestic Refuse,Vehicle Maintenance External,619
http://statistics.data.gov.uk/id/local-authority/12UE,Huntingdonshire District Council,28/02/2013,121224,98,M & N Vehicle Services,CR480661,Street Cleaning,Vehicle Mot,622
http://statistics.data.gov.uk/id/local-authority/12UE,Huntingdonshire District Council,07/02/2013,119108,741.24,A C Commercials,CR000141,Domestic Refuse,Vehicle Parts & Fittings,625
http://statistics.data.gov.uk/id/local-authority/12UE,Huntingdonshire District Council,07/02/2013,120037,857.57,Terberg Matec Uk Ltd,CR402183,Domestic Refuse,Vehicle Parts & Fittings,625
http://statistics.data.gov.uk/id/local-authority/12UE,Huntingdonshire District Council,28/02/2013,121621,10911.56,Wfl Enterprises Ltd,CR455202,Domestic Refuse,Vehicle Parts & Fittings,625
http://statistics.data.gov.uk/id/local-authority/12UE,Huntingdonshire District Council,21/02/2013,121110,529.2,Wfl Enterprises Ltd,CR455202,Domestic Refuse,Vehicle Parts & Fittings,625
http://statistics.data.gov.uk/id/local-authority/12UE,Huntingdonshire District Council,07/02/2013,119190,559.16,Terberg Matec Uk Ltd,CR402183,Fleet Management,Vehicle Parts & Fittings,625
http://statistics.data.gov.uk/id/local-authority/12UE,Huntingdonshire District Council,21/02/2013,121133,913.54,Riverside Truck Rental Ltd,CR411499,Operations Mgt Units,Vehicle Parts & Fittings,625
http://statistics.data.gov.uk/id/local-authority/12UE,Huntingdonshire District Council,28/02/2013,121224,4783.78,M & N Vehicle Services,CR480661,Street Cleaning,Vehicle Parts & Fittings,625
http://statistics.data.gov.uk/id/local-authority/12UE,Huntingdonshire District Council,07/02/2013,119053,93.36,Days Contract Hire,CR417030,Fleet Management,Vehicle Service,621
http://statistics.data.gov.uk/id/local-authority/12UE,Huntingdonshire District Council,07/02/2013,120259,415.84,Days Contract Hire,CR417030,Fleet Management,Vehicle Service,621
http://statistics.data.gov.uk/id/local-authority/12UE,Huntingdonshire District Council,07/02/2013,120259,207.92,Days Contract Hire,CR417030,Fleet Management,Vehicle Warranty,612
http://statistics.data.gov.uk/id/local-authority/12UE,Huntingdonshire District Council,28/02/2013,121520,565.04,Booker Cash And Carry,CR027611,One Leisure Huntingdon,Vending Materials,560
http://statistics.data.gov.uk/id/local-authority/12UE,Huntingdonshire District Council,07/02/2013,119840,1168.54,Glaxosmithkline,CR010424,One Leisure Huntingdon,Vending Materials,560
http://statistics.data.gov.uk/id/local-authority/12UE,Huntingdonshire District Council,07/02/2013,120490,740.89,Booker Cash And Carry,CR027611,One Leisure St Ives,Vending Materials,560
http://statistics.data.gov.uk/id/local-authority/12UE,Huntingdonshire District Council,28/02/2013,120908,89.05,Booker Cash And Carry,CR027611,One Leisure St Ives,Vending Materials,560
http://statistics.data.gov.uk/id/local-authority/12UE,Huntingdonshire District Council,07/02/2013,119669,804.96,Glaxosmithkline,CR010424,One Leisure St Ives,Vending Materials,560
http://statistics.data.gov.uk/id/local-authority/12UE,Huntingdonshire District Council,07/02/2013,119165,810.05,Snackline Direct Ltd,CR478090,One Leisure St Neots,Vending Materials,560
http://statistics.data.gov.uk/id/local-authority/12UE,Huntingdonshire District Council,07/02/2013,119109,1765.45,Cambridgeshire County Council,CR006678,Trade Refuse,Waste Disposal,763
http://statistics.data.gov.uk/id/local-authority/12UE,Huntingdonshire District Council,14/02/2013,545830,828.47,Abbey College,CR478009,One Leisure Ramsey,Water,432
http://statistics.data.gov.uk/id/local-authority/12UE,Huntingdonshire District Council,21/02/2013,546681,857.02,Anglian Water,CR000071,One Leisure Sawtry,Water,432
http://statistics.data.gov.uk/id/local-authority/12UE,Huntingdonshire District Council,07/02/2013,120203,581.74,Anglian Water,CR011617,Hinchingbrooke Country Park,Water,432
http://statistics.data.gov.uk/id/local-authority/12UE,Huntingdonshire District Council,07/02/2013,120185,4725.28,Anglian Water,CR000071,One Leisure St Neots,Water,432
http://statistics.data.gov.uk/id/local-authority/12UE,Huntingdonshire District Council,21/02/2013,121139,906.38,Anglian Water,CR000071,One Leisure St Neots,Water,432
http://statistics.data.gov.uk/id/local-authority/12UE,Huntingdonshire District Council,07/02/2013,120186,754.56,Anglian Water,CR000071,One Leisure St Neots,Water,432
http://statistics.data.gov.uk/id/local-authority/12UE,Huntingdonshire District Council,07/02/2013,120206,684.66,Anglian Water,CR000071,Pathfinder House Site,Water,432
